Cogmind - Beta 11.1 @@@ ROGUE MODE // 2022.06.15 @ 22:11:55 Player: Delirus Result: Destroyed by G-47 Trooper with Particle Gun Performance ------------- Evolutions (0) 0 Regions Visited (2) 400 Robots Destroyed (27) 135 Value Destroyed (522) 522 Prototype IDs (0) 0 Alien Tech Used (0) 0 Bonus (0) 0 TOTAL SCORE: 1057 Bonus ------- None Cogmind --------- Core Integrity 0/250 Matter 245/300 Energy 100/100 System Corruption 0% Temperature Cool (9) Movement Rolling (140) Ox4 Location -10/Mines Parts ------- > --- POWER (1) -------- (None) > --- PROPULSION (2) --- Light Treads Wheel > --- UTILITY (2) ------ High-capacity Storage Unit > --- WEAPON (2) ------- Medium Laser Mace > --- INVENTORY (20) --- Ion Engine Light Treads Heat Sink Large Matter Pod (105) Signal Interpreter Seismic Detector Light Armor Plating Medium Laser Small Laser Light Cannon Grenade Launcher Rocket Launcher Peak State ------------ > --- POWER ------------ Ion Engine > --- PROPULSION ------- Light Treads Wheel > --- UTILITY ---------- High-capacity Storage Unit Light Armor Plating > --- WEAPON ----------- Medium Laser Rocket Launcher > --- INVENTORY -------- Ion Engine Light Treads Wheel Large Matter Pod Signal Interpreter Seismic Detector Light Armor Plating Medium Laser Light Cannon Grenade Launcher Mace [Rating: 9] Favorites ----------- Power Ion Engine Engine Ion Engine Propulsion Light Treads Treads Light Treads Leg Aluminum Leg Wheel Wheel Utility Light Armor Plating Storage High-capacity Storage Unit Protection Light Armor Plating Weapon Assault Rifle Energy Gun Medium Laser Ballistic Gun Assault Rifle Ballistic Cannon Light Cannon Launcher Rocket Launcher Impact Weapon Mace Build | -11 -10 -10 ------- Run | Scr Mat Min Slots Evolved . | . . . Power . | . . . Propulsion . | . . . Utility . | . . . Weapon . | . . . Parts Attached 19 | 2 10 7 Power . | . . . Engine . | . . . Core . | . . . Reactor . | . . . Propulsion 5 | 2 2 1 Treads 2 | 1 1 . Leg . | . . . Wheel 3 | 1 1 1 Hover . | . . . Flight . | . . . Utility 5 | . 5 . Device . | . . . Storage 2 | . 2 . Processor . | . . . Hackware . | . . . Protection 3 | . 3 . Artifact . | . . . Weapon 9 | . 3 6 Energy Gun 2 | . 1 1 Energy Cannon . | . . . Ballistic Gun 1 | . . 1 Ballistic Cannon 3 | . 1 2 Launcher 2 | . 1 1 Special Weapon . | . . . Impact Weapon 1 | . . 1 Slashing Weapon . | . . . Piercing Weapon . | . . . Special Melee Weapon . | . . . Unidentified Prototypes . | . . . Parts Lost 5 | . 2 3 Power 1 | . . 1 Propulsion 2 | . 1 1 Utility 2 | . 1 1 Weapon . | . . . Highest Loss Streak 3 | . 2 3 To Critical Strikes . | . . . Average Slot Usage (%) 98 | . 98 98 Engine 13 | . 14 13 Treads 14 | . 14 14 Wheel 13 | . 13 13 Storage 14 | . 14 14 Protection 13 | . 13 13 Energy Gun 8 | . 9 6 Ballistic Gun 14 | . 18 7 Ballistic Cannon 4 | . . 13 Naked Turns . | . . . Heaviest Build 54 | 13 53 54 Greatest Support 20 | 20 10 20 Greatest Overweight (x) 5 | 1 5 5 Average Overweight (x) 3 | . 3 4 Largest Inventory Capacity 20 | 8 20 20 Average Capacity 16 | 8 15 20 Most Carried 14 | 6 14 12 Average Carried 10 | 4 10 11 Final Capacity 20 | 8 20 20 Final Carried 12 | 5 12 12 Class Distribution -------------------- 100% | Mutant Dominant Class ---------------- Mutant | -10/Materials Mutant | -10/Mines Resources | -11 -10 -10 ----------- Run | Scr Mat Min Matter Collected 763 | 232 342 189 Remotely . | . . . Salvage Created 659 | 20 459 180 Parts 53 | 3 33 17 Haulers Intercepted . | . . . Recyclers Shooed . | . . . Parts Field Recycled . | . . . Retrieved Matter . | . . . Parts Self-Destructed . | . . . Prevented . | . . . Kills | -11 -10 -10 ------- Run | Scr Mat Min Combat Hostiles Destroyed 22 | . 16 6 Melee 1 | . . 1 Guns 16 | . 16 . Cannons 2 | . . 2 AOE 3 | . . 3 Classes Destroyed 6 | 1 4 1 Builder 2 | . 1 1 Tunneler 1 | 1 . . Recycler 1 | . . 1 Watcher 1 | . 1 . Swarmer 12 | . 9 3 Grunt 10 | . 7 3 Best Kill Streak 9 | 1 9 4 Combat Bots Only 8 | . 8 3 Max Kills in Single Turn 2 | 1 1 2 Gunslinging . | . . . Exploded 2 | . . 2 Melee 1 | . . 1 Uniques/NPCs Destroyed . | . . . Combat | -11 -10 -10 -------- Run | Scr Mat Min Damage Taken 1277 | . 788 489 Core 257 | . 151 106 Absorbed by Shields . | . . . Regen/Repaired (Parts) 89 | . 89 . Core Remaining (%) 100 | 100 . . Volleys Fired 89 | 3 64 22 Largest 2 | 2 2 2 Hottest 85 | 40 70 85 Shots Fired 177 | 6 128 43 Gun 156 | 6 128 22 Cannon 19 | . . 19 Launcher 2 | . . 2 Special . | . . . Kinetic 138 | 6 113 19 Thermal 37 | . 15 22 Explosive 2 | . . 2 Electromagnetic . | . . . Robot Hit Streak 9 | 1 9 8 Robot Miss Streak 6 | 3 6 4 Penetration Max . | . . . Secondary Targets 8 | . 8 . Max Gunslinging Chain 1 | . 1 . Shots Hit Robots 106 | 2 76 28 Core Hits 46 | 2 30 14 Critical Kills . | . . . Critical Parts Destroyed . | . . . Critical Strikes 2 | . 1 1 Burn 2 | . 1 1 Melee Attacks 1 | . . 1 Impact 1 | . . 1 Slashing . | . . . Piercing . | . . . Sneak Attacks . | . . . Combat Hostiles . | . . . Follow-up Attacks . | . . . Damage Inflicted 1577 | 12 869 696 Guns 1055 | 12 869 174 Cannons 223 | . . 223 Explosions 250 | . . 250 Melee 39 | . . 39 Ramming 10 | . . 10 Kinetic 1005 | 12 770 223 Thermal 273 | . 99 174 Explosive 250 | . . 250 Electromagnetic . | . . . Impact 39 | . . 39 Slashing . | . . . Piercing . | . . . Highest Corruption . | . . . Average Corruption . | . . . Corruption Purged . | . . . Corruption Blocked . | . . . Overload Shots . | . . . Overflow Damage 6 | . . 6 Projectiles . | . . . Explosions 6 | . . 6 Melee . | . . . Knockbacks 6 | . . 6 Impact . | . . . Kinetic 3 | . . 3 Secondary 3 | . . 3 Self-Inflicted Damage 5 | . . 5 Shots . | . . . Rammed 1 | . . 1 Targets Rammed 1 | . . 1 Kicked . | . . . Crushed . | . . . Highest Temperature 366 | . 108 366 Average Temperature 73 | . 20 160 Received Heat Transfer 504 | . 228 276 Effects 2 | . . 2 Interference 1 | . . 1 Damage (minor) 1 | . . 1 Siege Activations . | . . . Robots Corrupted . | . . . Combat Hostiles . | . . . Parts Fried . | . . . Impact Corruptions . | . . . Robots Melted . | . . . Combat Hostiles . | . . . Parts Melted 1 | . 1 . Heat Transferred 962 | . 370 592 Parts Sabotaged . | . . . Parts Stolen . | . . . Parts Stripped . | . . . Power Chain Reactions . | . . . Missiles Intercepted . | . . . Alert | -11 -10 -10 ------- Run | Scr Mat Min Peak Influence 268 | 5 268 124 Initial 23 | . 3 23 Average 115 | 3 136 82 Maximum Alert Level 1 | . 1 . Low Security (%) 87 | 100 79 100 Level 1 12 | . 20 . Level 2 . | . . . Level 3 . | . . . Level 4 . | . . . Level 5 . | . . . High Security . | . . . Max Security . | . . . Squads Dispatched 4 | . 4 . Investigation 3 | . 3 . Extermination . | . . . Reinforcement 1 | . 1 . Assault . | . . . Garrison . | . . . Intercept . | . . . Searches Triggered . | . . . Construction Impeded . | . . . Haulers Reinforced . | . . . Active Scanning Responses . | . . . Cargo Convoy Interrupts . | . . . Stealth | -11 -10 -10 --------- Run | Scr Mat Min Distress Signals 3 | . 3 . Communications Jammed . | . . . Distress Signals . | . . . Times Spotted 31 | . 24 7 Peak Tracking Total 6 | . 6 3 Tactical Retreats . | . . . Traps | -11 -10 -10 ------- Run | Scr Mat Min Traps Triggered 4 | . 4 . Indirectly . | . . . Trap Hack Attempts . | . . . Triggered . | . . . Disarmed . | . . . Reprogrammed . | . . . Reused . | . . . Traps Extracted . | . . . Installed . | . . . Triggered . | . . . Machines | -11 -10 -10 ---------- Run | Scr Mat Min Machines Disabled 1 | . 1 . Max in Single Turn 1 | . 1 . Machines Sabotaged . | . . . Garrisons Compromised . | . . . Overloaded Fab Kills . | . . . Hacking | -11 -10 -10 --------- Run | Scr Mat Min Machines Accessed 7 | . 6 1 Terminals 5 | . 4 1 Fabricators . | . . . Repair Stations 1 | . 1 . Recycling Units 1 | . 1 . Scanalyzers . | . . . Garrison Access . | . . . Total Hacks 15 | . 13 2 Successful 10 | . 8 2 Failed 5 | . 5 . Catastrophic 1 | . 1 . Database Lockouts . | . . . Manual 12 | . 10 2 Terminals 11 | . 9 2 Fabricators . | . . . Repair Stations 2 | . 2 . Recycling Units 2 | . 2 . Scanalyzers . | . . . Garrison Access . | . . . Terminal Hacks 2 | . 1 1 Branch Access Points 2 | . 1 1 Fabricator Hacks . | . . . Repair Station Hacks 2 | . 2 . Scan Component 1 | . 1 . Repair 1 | . 1 . Recycling Unit Hacks 1 | . 1 . Report Inventory 1 | . 1 . Scanalyzer . | . . . Garrison Access Hacks . | . . . Unauthorized Hacks 5 | . 4 1 Terminals 4 | . 3 1 Assimilate 1 | . . 1 Botnet 2 | . 2 . Operators 1 | . 1 . Fabricators . | . . . Repair Stations . | . . . Recycling Units 1 | . 1 . Tunnel 1 | . 1 . Scanalyzers . | . . . Garrison Access . | . . . Data Cores Recovered . | . . . Used . | . . . Hacking Detections 5 | . 4 1 Full Trace Events . | . . . Feedback Events . | . . . Feedback Blocked . | . . . Robot Schematics Acquired . | . . . Robots Built . | . . . Authchips . | . . . Time . | . . . Total Robot Build Rating . | . . . Part Schematics Acquired . | . . . Parts Built . | . . . Authchips . | . . . Time . | . . . Total Part Build Rating . | . . . Parts Repaired 1 | . 1 . Time 26 | . 26 . Parts Recycled . | . . . Recycled Matter . | . . . Retrieved Matter . | . . . Retrieved Components . | . . . Parts Scanalyzed . | . . . Part Schematics Acquired . | . . . Parts Damaged . | . . . Bothacking | -11 -10 -10 ------------ Run | Scr Mat Min Used RIF Installer . | . . . Robots Hacked . | . . . Non-combat . | . . . Combat . | . . . Robot Hacks Applied . | . . . Relay Couplers Released . | . . . Fabnet Peak Effective % . | . . . Robots Rewired . | . . . Allies Hacked . | . . . Hacks Repelled . | . . . Allies | -11 -10 -10 -------- Run | Scr Mat Min Total Allies 1 | . . 1 Largest Group 1 | . . 1 Highest-Rated Group 31 | . . 31 Highest-Rated Ally 31 | . . 31 Total Orders . | . . . Ally Attacks 4 | . . 4 Total Damage . | . . . Kills . | . . . Allies Corrupted . | . . . Allies Melted . | . . . Intel | -11 -10 -10 ------- Run | Scr Mat Min Robot Analysis Total . | . . . Derelict Logs Recovered 1 | . . 1 Drone Launches . | . . . Drone Recoveries . | . . . Exploration | -11 -10 -10 ------------- Run | Scr Mat Min Turns Passed 2035 | 45 1312 678 Spaces Moved 1217 | 34 814 369 Core . | . . . Treads 1 | . . 1 Legs 1 | 1 . . Wheels 1215 | 33 814 368 Hover . | . . . Flight . | . . . Fastest Speed 95 | 95 95 140 Average Speed 135 | 95 128 155 Slowest Speed 320 | 120 155 320 Overloaded Moves . | . . . Propulsion Burnouts . | . . . Robots Hopped . | . . . Cave-ins Triggered . | . . . Exploration Rate (%) 57 | 3 91 79 Regions Visited 2 Branch Regions 1 Pre-discovered Areas 1 | . 1 . Known Exits Taken 1 | . 1 . Unknown Exits Taken 1 | 1 . . Scrap Searched 2 | . . 2 Spaces Dug . | . . . Terrain Destroyed 20 | . . 20 Melee . | . . . Projectile . | . . . AOE 20 | . . 20 Terrain Rammed . | . . . Walls Destroyed . | . . . Machines Disabled . | . . . Actions | -11 -10 -10 --------- Run | Scr Mat Min Total 1430 | 41 962 427 Wait 71 | . 51 20 Move 1215 | 33 813 369 Hop . | . . . Pick Up 21 | 1 16 4 Fast Attach 1 | . 1 . Attach 3 | . 2 1 Detach . | . . . Swap 15 | 2 7 6 Drop 13 | 2 8 3 Fire 89 | 3 64 22 Melee 1 | . . 1 Ram 1 | . . 1 Kick . | . . . Crush . | . . . Escape Stasis . | . . . Rewire . | . . . Trap . | . . . Miscellaneous . | . . . Route ------- -11/Scrapyard -10/Materials (discovered 5 exits: [*Mat x3] / *Min x2) -10/Mines (discovered 2 exits: [*Mat x2]) History --------- Turn | Location | Event 1 | -11/Scrapyard | Discovered new exit (range 2) 46 | -11/Scrapyard | Entered Materials 168 | -10/Materials | Destroyed 8 combat bots 316 | -10/Materials | Build established: Mutant 331 | -10/Materials | Identified exit to Mines 424 | -10/Materials | Discovered new exit (range 13) 448 | -10/Materials | Core integrity fell below 50% 592 | -10/Materials | Repaired Lgt. Armor Plating 660 | -10/Materials | Discovered new exit (range 15) 894 | -10/Materials | Discovered new exit (range 5) 1358 | -10/Materials | Entered Mines 1416 | -10/Mines | Discovered new exit (range 5) 1510 | -10/Mines | Received a Rocket Launcher from a helpful Derelict 1734 | -10/Mines | Received a Mining Laser from a helpful Derelict 1947 | -10/Mines | Discovered new exit (range 4) 2014 | -10/Mines | Core integrity fell below 20% 2036 | -10/Mines | Destroyed by G-47 Trooper with Particle Gun Last Messages --------------- 01929_ Searching scrap... 01929_ Found Sensor Array. 01929_ Found Sml. Laser. 01929_ Found 26 Matter. 01930_ Acquired 26 matter. 01947_ EXIT=FOUND 01990_ DN-ZOV(g): "You look like you can take it from here!" 01990_ DN-ZOV(g) slips back into the shadows. 01999_ G-47 Trooper suffers critical hit (Burn). 02004_ Ion Engine destroyed. 02011_ Wheel destroyed. 02017_ Overheating: System interference. 02017_ Lgt. Cannon temporarily disabled. 02018_ G-47 Trooper heat damages Particle Gun, Aluminum Leg, Imp. Heat Sink. 02019_ Critical hit (Burn: +37). 02024_ Lgt. Armor Plating destroyed. 02025_ G-34 Mercenary destroyed. 02029_ Acquired 2 matter. 02031_ Acquired Heat Sink. 02035_ Acquired Sml. Laser. Map ----- +----------------------------------------------------+ | | | | | | | | | | | | | | | | | | | | | | | | | | | | | | | | | | | ?????????????????????????????????????????????????? | | ?????????????????????????????????????????????????? | | ??????????? ####????????????????????????????????? | | ?????????? ???????????????????????????????? | | ????????????? g ?????####????????????????????? | | ????????????????# ##### ##???????????????????? | | ?????????????????# % ##??????????????????? | | ?????????????????# %% = #?###??????????????? | | ?????????????????# #####@ ### ##?????????????? | | ????????????????# ??????# ## #???????####### | | ???????????????????????## ##?###??# | | ??????????????????????## ## ##?# ##### | | ??????????????????????# #?# #???? | | ??????????????????????# ### #???? | | ??????????????????????# #???? | | ??????????????????????## ### #### #???? | | ???????????????????????# ##?### #?## ##### | | ???????????????????????# #????# #?# | | ???????????????????????# #????# #?# """ "" | | ???????????????????????# #????# ##?# """ "" | | ???????????????????????# #????## ##??# """ "" | | ???????????????????????# #?????### #???# | | ???????????????????????#[#???????### #???# """ "" | | ??????????????????????## ########### #???# """ "" | | ??????????????????????# ! #???# """ "" | | ??????????????????????# ############ #???# | | ??????????????????????# #??????????# ############ | | ??????????????????????# #??????????# #?????? | | ??????????????????????# #?????????# < !! #?????? | | ??????????????????????# #????????# ! ! #?????? | | ??????????????????????# #????????# ! ! #?????? | | ??????????????????##### #????????## !! #????? | | ??????????????????# #?????????# #????? | +----------------------------------------------------+ Best States ------------- Heat Dissipation 25 Energy Generation 10 Energy Capacity 250 Matter Stores 300 Matter Capacity 300 Sight Range 16 Terrain Scan Density 10 Armor Coverage 150 Evasion (%) 41 Recoil Reduction 1 Item Schematics ----------------- None Robot Schematics ------------------ None Fabricated ------------ Nothing Alien Tech Used ----------------- None Achievements -------------- None Challenges ------------ None Game ------ Seed CorruptionSkeletonSabre Manual? 0 Play Time 00:21:08 Cumulative 18.4 hours Start 2022.06.15 @ 14:52:56 End 2022.06.15 @ 22:11:55 Sessions 2 Manual Loads 0 Difficulty Rogue Special Mode None Game No. 24 Rogue 24 Adventurer 0 Explorer 0 Win Type - Total 0 Types 0/0/0/0/0/0/0/0/0 Lore% 8 Gallery% 21 Achievement% 21 Wizard Run 0 Options --------- ASCII 0 Keyboard 0 Movement Numpad Keybinds 0 Fullscreen 1 Font 12/Smallcaps Map View 83x54 Tactical HUD 1 Map Filters NONE Filters NONE Steam 1 RUN: 5f1ab05e-ffb7-4356-86b5-05cd6140bbc2